fUSD/lending_fUSD_20240630
["ID","MTS","AMOUNT","RATE_DAILY","PERIOD"]
[330708295,1719720637768,-500.0,0.00013925,3]
[330708296,1719720637778,-500.0,0.00013925,3]
[330708297,1719720637788,-1067.83,0.00013925,3]
[330708298,1719720637797,-500.0,0.00013925,3]
[330708299,1719720637806,-500.0,0.00013925,3]
[330708300,1719720637815,-500.0,0.00013925,3]
[330708301,1719720637824,-500.0,0.00013925,3]
[330708302,1719720637833,-500.0,0.00013925,3]
[330708303,1719720637842,-500.0,0.00013925,3]
[330708304,1719720637851,-500.0,0.00013925,3]
[330708305,1719720637860,-500.0,0.00013925,3]
[330708306,1719720637869,-500.0,0.00013925,3]
[330708307,1719720637879,-619.15,0.00013925,3]
[330708308,1719720637888,-357.07,0.00013925,3]
[330708310,1719720637897,-5174.01,0.00013926,3]
[330708312,1719720637906,-623.24,0.0001399,3]
[330708314,1719720637915,-175.48569036,0.0001399,2]
[330708316,1719720637924,-500.0,0.00013998,3]
[330708318,1719720637933,-500.0,0.00013998,3]
[330708320,1719720637942,-500.0,0.00013998,3]
[330708322,1719720637952,-1643.71,0.00013998,3]
[330708324,1719720637962,-500.0,0.00013998,3]
[330708326,1719720637972,-500.0,0.00013998,3]
[330708328,1719720637982,-277.95810623,0.00013998,3]
[330708330,1719720637991,-500.0,0.00013998,3]
[330708332,1719720638001,-500.0,0.00013998,3]
[330708334,1719720638010,-182.71577565,0.00013999,3]
[330708336,1719720638020,-500.0,0.00013999,3]
[330708338,1719720638029,-500.0,0.00013999,3]
[330708340,1719720638039,-500.0,0.00013999,3]
[330708342,1719720638048,-500.0,0.00013999,3]
[330708344,1719720638058,-500.0,0.00013999,3]
[330708347,1719720638068,-500.0,0.00013999,3]
[330708349,1719720638078,-419.71,0.00013999,3]
[330708351,1719720638087,-500.0,0.00013999,3]
[330708353,1719720638097,-500.0,0.00013999,3]
[330708354,1719720638106,-500.0,0.00013999,3]
[330708356,1719720638116,-500.0,0.00013999,3]
[330708359,1719720638126,-292.73137895,0.00013999,3]
[330708361,1719720638136,-500.0,0.00013999,3]
[330708363,1719720638144,-500.0,0.00013999,2]
[330708364,1719720638154,-508.33216048,0.00013999,3]
[330708367,1719720638164,-500.0,0.00013999,3]
[330708368,1719720638173,-500.0,0.00013999,3]
[330708371,1719720638188,-500.0,0.00013999,3]
[330708373,1719720638197,-500.0,0.00013999,3]
[330708375,1719720638208,-500.0,0.00013999,3]
[330708377,1719720638218,-510.86586663,0.00013999,3]
[330708379,1719720638227,-361.66722291,0.00013999,3]
[330708381,1719720638237,-500.0,0.00013999,3]
[330708383,1719720638248,-500.0,0.00013999,3]
[330708385,1719720638259,-500.0,0.00013999,3]
[330708387,1719720638268,-500.0,0.00013999,3]
[330708389,1719720638277,-392.70857195,0.00013999,3]
[330708391,1719720638287,-500.0,0.00013999,3]
[330708393,1719720638297,-188.83,0.00013999,3]
[330708395,1719720638307,-500.0,0.00013999,3]
[330708397,1719720638316,-500.0,0.00013999,3]
[330708400,1719720638326,-500.0,0.00013999,3]
[330708401,1719720638336,-500.0,0.00013999,3]
[330708403,1719720638345,-500.0,0.00013999,3]
[330708405,1719720638354,-521.58,0.00013999,3]
[330708407,1719720638364,-500.0,0.00013999,3]
[330708409,1719720638373,-500.0,0.00013999,3]
[330708412,1719720638383,-500.0,0.00013999,3]
[330708414,1719720638393,-500.0,0.00013999,3]
[330708416,1719720638402,-521.84,0.00013999,3]
[330708418,1719720638411,-500.0,0.00013999,3]
[330708420,1719720638421,-500.0,0.00013999,3]
[330708421,1719720638430,-500.0,0.00013999,3]
[330708424,1719720638440,-500.0,0.00013999,3]
[330708425,1719720638449,-500.0,0.00013999,3]
[330708427,1719720638459,-500.0,0.00013999,3]
[330708429,1719720638468,-500.0,0.00013999,3]
[330708431,1719720638478,-500.0,0.00013999,3]
[330708433,1719720638488,-500.0,0.00013999,3]
[330708436,1719720638497,-161.51848348,0.00013999,3]
[330708438,1719720638508,-500.0,0.00013999,3]
[330708440,1719720638517,-257057.78726559,0.00014,2]
[330708443,1719720638538,-264.07885661,0.00012314,2]
[330708445,1719720638547,-24075.5795606,0.00014,2]
[330708447,1719720638559,-1241.44815915,0.00014,2]
[330708448,1719720638576,-255479.3593057,0.00014,2]
[330708449,1719720638587,-12937.08986394,0.00014,2]
[330708450,1719720638597,-2524.0,0.00014,2]
[330708603,1719720639869,-500.0,0.00013999,3]
[330708605,1719720639880,-3891.52721584,0.00014,2]
[330708614,1719720639980,-652.92351287,0.00014,2]
[330708844,1719720642610,-582.5254763,0.00014,2]
[330708855,1719720642882,-422.7159626,0.00014,2]
[330708858,1719720642894,-1525.98186201,0.00014,2]
[330708936,1719720645760,-3150.0,0.00014,2]
[330708937,1719720645810,-1979.81737229,0.00014,2]
[330708938,1719720645869,-918.41629221,0.00014,2]
[330708939,1719720645882,-691.60000005,0.00014,2]
[330708943,1719720748972,700.938,0.00025999,120]
[330708944,1719720970421,-500.0,0.00013925,3]
[330708945,1719720970445,-500.0,0.00013925,3]
[330708946,1719720970467,-500.0,0.00013925,3]
[330708947,1719720970488,-500.0,0.00013925,3]
[330708948,1719720970511,-623.24,0.0001399,3]
[330708949,1719720970531,-500.0,0.00013998,3]
[330708950,1719720970552,-500.0,0.00013998,3]
[330708951,1719720970575,-435.24,0.00013998,3]
[330708952,1719720970598,-500.0,0.00013999,3]
[330708953,1719720970623,-500.0,0.00013999,3]
[330708954,1719720970647,-500.0,0.00013999,3]
[330708955,1719720970668,-500.0,0.00013999,3]
[330708956,1719720970688,-419.71,0.00013999,3]
[330708957,1719720970710,-500.0,0.00013999,3]
[330708958,1719720970730,-500.0,0.00013999,3]
[330708959,1719720970751,-500.0,0.00013999,3]
[330708960,1719720970786,-500.0,0.00013999,3]
[330708961,1719720970814,-500.0,0.00013999,3]
[330708962,1719720970844,-500.0,0.00013999,3]
[330708963,1719720970870,-182.71577565,0.00013999,3]
[330708964,1719720970894,-1114.26,0.00013999,3]
[330708965,1719720970919,-500.0,0.00013999,3]
[330708966,1719720970940,-1643.71,0.00013999,3]
[330708967,1719720970967,-4958.42,0.00013999,3]
[330708968,1719720970993,-500.0,0.00013999,3]
[330708969,1719720971019,-500.0,0.00013999,3]
[330708970,1719720971043,-521.58,0.00013999,3]
[330708971,1719720971068,-500.0,0.00014035,3]
[330708972,1719720971091,-500.0,0.00014035,3]
[330708973,1719720971114,-500.0,0.00014035,3]
[330708974,1719720971138,-500.0,0.00014035,3]
[330708975,1719720971163,-500.0,0.00014035,3]
[330708976,1719720971189,-500.0,0.00014035,3]
[330708977,1719720971213,-500.0,0.00014035,3]
[330708978,1719720971239,-500.0,0.00014035,3]
[330708979,1719720971263,-619.15,0.00014035,3]
[330708980,1719720971286,-500.0,0.00014035,3]
[330708981,1719720971310,-500.0,0.00014035,3]
[330708982,1719720971333,-500.0,0.00014035,3]
[330708983,1719720971356,-500.0,0.00014035,3]
[330708984,1719720971380,-500.0,0.00014108,3]
[330708985,1719720971402,-500.0,0.00014108,3]
[330708986,1719720971427,-500.0,0.00014108,3]
[330708987,1719720971452,-500.0,0.00014109,3]
[330708988,1719720971476,-500.0,0.00014109,3]
[330708989,1719720971498,-500.0,0.00014109,3]
[330708990,1719720971519,-437.67446701,0.00014109,3]
[330708991,1719720971540,-500.0,0.00014109,3]
[330708992,1719720971564,-500.0,0.00014109,3]
[330708993,1719720971586,-421.16668828,0.00014109,3]
[330708994,1719720971610,-500.0,0.00014109,3]
[330708995,1719720971633,-337.12,0.00014109,3]
[330708996,1719720971657,-500.0,0.00014109,3]
[330708997,1719720971682,-527.2460251,0.00014109,3]
[330708998,1719720971704,-500.0,0.00014109,3]
[330708999,1719720971731,-500.0,0.00014109,3]
[330709000,1719720971755,-500.0,0.00014109,3]
[330709001,1719720971793,-500.0,0.00014109,3]
[330709002,1719720971819,-500.0,0.00014109,3]
[330709003,1719720971846,-500.0,0.00014109,3]
[330709004,1719720971868,-500.0,0.00014109,3]
[330709005,1719720971889,-500.0,0.00014109,3]
[330709006,1719720971911,-200.19,0.00014109,3]
[330709007,1719720971934,-500.0,0.00014109,3]
[330709008,1719720971961,-500.0,0.00014109,3]
[330709009,1719720971986,-1114.26,0.00014109,3]
[330709010,1719720972014,-1643.71,0.00014109,3]
[330709011,1719720972042,-4958.42,0.00014109,3]
[330709012,1719720972066,-500.0,0.00014109,3]
[330709013,1719720972089,-500.0,0.00014109,3]
[330709014,1719720972114,-521.58,0.00014109,3]
[330709015,1719720972140,-274.04,0.00014144,3]
[330709016,1719720972162,-500.0,0.00014144,3]
[330709017,1719720972190,-500.0,0.00014144,3]
[330709018,1719720972215,-500.0,0.00014144,3]
[330709019,1719720972239,-500.0,0.00014144,3]
[330709020,1719720972261,-619.15,0.00014144,3]
[330709021,1719720972284,-500.0,0.00014144,3]
[330709022,1719720972306,-500.0,0.00014144,3]
[330709023,1719720972334,-500.0,0.00014144,3]
[330709024,1719720972361,-500.0,0.00014144,3]
[330709025,1719720972386,-500.0,0.00014217,3]
[330709026,1719720972412,-500.0,0.00014217,3]
[330709027,1719720972449,-500.0,0.00014217,3]
[330709028,1719720972474,-500.0,0.00014218,3]
[330709029,1719720972498,-500.0,0.00014218,3]
[330709030,1719720972522,-500.0,0.00014218,3]
[330709031,1719720972548,-500.0,0.00014218,3]
[330709032,1719720972575,-500.0,0.00014218,3]
[330709033,1719720972599,-500.0,0.00014218,3]
[330709034,1719720972621,-500.0,0.00014218,3]
[330709035,1719720972644,-500.0,0.00014218,3]
[330709036,1719720972668,-500.0,0.00014218,3]
[330709037,1719720972690,-500.0,0.00014218,3]
[330709038,1719720972712,-500.0,0.00014218,3]
[330709039,1719720972735,-415.09,0.00014218,3]
[330709040,1719720972760,-500.0,0.00014218,3]
[330709041,1719720972783,-1114.26,0.00014218,3]
[330709042,1719720972804,-1643.71,0.00014218,3]
[330709043,1719720972828,-4958.42,0.00014218,3]
[330709044,1719720972854,-500.0,0.00014218,3]
[330709045,1719720972876,-500.0,0.00014218,3]
[330709046,1719720972899,-521.58,0.00014218,3]
[330709047,1719720972924,-500.0,0.00014254,3]
[330709048,1719720972947,-500.0,0.00014254,3]
[330709049,1719720972971,-500.0,0.00014254,3]
[330709050,1719720972993,-500.0,0.00014254,3]
[330709051,1719720973017,-619.15,0.00014254,3]
[330709052,1719720973039,-500.0,0.00014254,3]
[330709053,1719720973061,-500.0,0.00014254,3]
[330709054,1719720973084,-189.81480244,0.00014254,3]
[330709055,1719720973107,-500.0,0.00014254,3]
[330709056,1719720973128,-500.0,0.00014327,3]
[330709057,1719720973150,-500.0,0.00014327,3]
[330709058,1719720973172,-500.0,0.00014327,3]
[330709059,1719720973194,-500.0,0.00014328,3]
[330709060,1719720973218,-348.7231179,0.00014328,3]
[330709061,1719720973242,-500.0,0.00014328,3]
[330709062,1719720973264,-500.0,0.00014328,3]
[330709063,1719720973289,-187.47456363,0.00014328,3]
[330709064,1719720973313,-500.0,0.00014328,3]
[330709065,1719720973336,-500.0,0.00014328,3]
[330709066,1719720973360,-500.0,0.00014328,3]
[330709067,1719720973383,-500.0,0.00014328,3]
[330709068,1719720973405,-500.0,0.00014328,3]
[330709069,1719720973432,-500.0,0.00014328,3]
[330709070,1719720973457,-500.0,0.00014328,3]
[330709071,1719720973483,-1114.26,0.00014328,3]
[330709072,1719720973507,-1643.71,0.00014328,3]
[330709073,1719720973529,-4958.42,0.00014328,3]
[330709074,1719720973552,-500.0,0.00014328,3]
[330709075,1719720973575,-500.0,0.00014328,3]
[330709076,1719720973600,-521.58,0.00014328,3]
[330709077,1719720973625,-500.0,0.00014364,3]
[330709078,1719720973650,-500.0,0.00014364,3]
[330709079,1719720973674,-500.0,0.00014364,3]
[330709080,1719720973700,-500.0,0.00014364,3]
[330709081,1719720973726,-619.15,0.00014364,3]
[330709082,1719720973749,-500.0,0.00014364,3]
[330709083,1719720973774,-500.0,0.00014364,3]
[330709084,1719720973800,-500.0,0.00014364,3]
[330709085,1719721001107,500.0,0.00013999,3]
[330709086,1719721004095,-500.0,0.00014436,3]
[330709087,1719721004118,-500.0,0.00014436,3]
[330709088,1719721004144,-500.0,0.00014438,3]
[330709089,1719721004166,-500.0,0.00014438,3]
[330709090,1719721004188,-500.0,0.00014438,3]
[330709091,1719721004208,-500.0,0.00014438,3]
[330709092,1719721004229,-500.0,0.00014438,3]
[330709093,1719721004250,-500.0,0.00014438,3]
[330709094,1719721004270,-500.0,0.00014438,3]
[330709095,1719721004291,-500.0,0.00014438,3]
[330709096,1719721004313,-500.0,0.00014438,3]
[330709097,1719721004338,-500.0,0.00014438,3]
[330709098,1719721004360,-1114.26,0.00014438,3]
[330709099,1719721004382,-1643.71,0.00014438,3]
[330709100,1719721004405,-500.0,0.00014438,3]
[330709101,1719721004429,-500.0,0.00014438,3]
[330709102,1719721004453,-521.58,0.00014438,3]
[330709103,1719721004476,-500.0,0.00014473,3]
[330709104,1719721004533,-500.0,0.00014473,3]
[330709105,1719721004557,-500.0,0.00014473,3]
[330709106,1719721004583,-500.0,0.00014473,3]
[330709107,1719721004602,-500.0,0.00014473,3]
[330709108,1719721004622,-500.0,0.00014473,3]
[330709109,1719721004642,-500.0,0.00014473,3]
[330709110,1719721004662,-500.0,0.00014546,3]
[330709111,1719721004685,-500.0,0.00014546,3]
[330709112,1719721004705,-500.0,0.00014547,3]
[330709113,1719721004726,-500.0,0.00014547,3]
[330709114,1719721004748,-500.0,0.00014547,3]
[330709115,1719721004772,-500.0,0.00014547,3]
[330709116,1719721004795,-500.0,0.00014547,3]
[330709117,1719721004814,-500.0,0.00014547,3]
[330709118,1719721004834,-500.0,0.00014547,3]
[330709119,1719721004858,-500.0,0.00014547,3]
[330709120,1719721004879,-500.0,0.00014547,3]
[330709121,1719721004903,-1114.26,0.00014547,3]
[330709122,1719721004923,-1643.71,0.00014547,3]
[330709123,1719721004947,-606.20802738,0.00014547,3]
[330709124,1719721004968,-500.0,0.00014547,3]
[330709125,1719721004989,-521.58,0.00014547,3]
[330709126,1719721005012,-500.0,0.00014583,3]
[330709127,1719721005032,-500.0,0.00014583,3]
[330709128,1719721005052,-500.0,0.00014583,3]
[330709129,1719721005073,-500.0,0.00014583,3]
[330709130,1719721005094,-500.0,0.00014583,3]
[330709131,1719721005116,-500.0,0.00014583,3]
[330709132,1719721005137,-500.0,0.00014583,3]
[330709133,1719721005158,-200.0,0.000146,5]
[330709134,1719721005178,-500.0,0.00014656,3]
[330709135,1719721005199,-500.0,0.00014657,3]
[330709136,1719721005220,-500.0,0.00014657,3]
[330709137,1719721005242,-500.0,0.00014657,3]
[330709138,1719721005264,-500.0,0.00014657,3]
[330709139,1719721005285,-534.53601743,0.00014657,3]
[330709140,1719721005306,-500.0,0.00014657,3]
[330709141,1719721005328,-500.0,0.00014657,3]
[330709142,1719721005350,-1114.26,0.00014657,3]
[330709143,1719721005370,-1643.71,0.00014657,3]
[330709144,1719721005391,-500.0,0.00014657,3]
[330709145,1719721005411,-521.58,0.00014657,3]
[330709146,1719721005433,-500.0,0.00014692,3]
[330709147,1719721005454,-500.0,0.00014692,3]
[330709148,1719721005477,-500.0,0.00014692,3]
[330709149,1719721005499,-500.0,0.00014692,3]
[330709150,1719721005519,-500.0,0.00014692,3]
[330709151,1719721005539,-500.0,0.00014692,3]
[330709152,1719721005560,-500.0,0.00014692,3]
[330709153,1719721005584,-500.0,0.000147,5]
[330709154,1719721005618,500.0,0.00013999,3]
[330709155,1719721005647,500.0,0.00014109,3]
[330709156,1719721005676,500.0,0.00014218,3]
[330709157,1719721005713,404.9251638,0.00014328,3]
[330709158,1719721009473,500.0,0.00013999,3]
[330709159,1719721017502,500.0,0.00013999,3]
[330709160,1719721035815,500.0,0.00013999,3]
[330709161,1719721036357,500.0,0.00014109,3]
[330709162,1719721055695,500.0,0.00013925,3]
[330709163,1719721056299,500.0,0.00014035,3]
[330709164,1719721056722,500.0,0.00014144,3]
[330709165,1719721057192,540.86661905,0.00014254,3]
[330709166,1719721058004,188.83,0.00013999,3]
[330709167,1719721058639,500.0,0.00013999,3]
[330709168,1719721058914,500.0,0.00014109,3]
[330709169,1719721059200,500.0,0.00014218,3]
[330709170,1719721059517,500.0,0.00014328,3]
[330709171,1719721059878,500.0,0.00014438,3]
[330709172,1719721060170,500.0,0.00014547,3]
[330709173,1719721060463,500.0,0.00014657,3]
[330709174,1719721062640,500.0,0.00013999,3]
[330709175,1719721064944,500.0,0.00013999,3]
[330709176,1719721068788,500.0,0.00013999,3]
[330709177,1719721069184,500.0,0.00013999,3]
[330709178,1719721069420,500.0,0.00014109,3]
[330709179,1719721069840,500.0,0.00014218,3]
[330709180,1719721070007,500.0,0.00014328,3]
[330709181,1719721070293,500.0,0.00014438,3]
[330709182,1719721070600,500.0,0.00014547,3]
[330709183,1719721070876,389.2,0.00014657,3]
[330709184,1719721074305,4132.02,0.00013998,3]
[330709185,1719721075899,-4132.02,0.00014108,3]
[330709186,1719721075920,-500.0,0.00014765,3]
[330709187,1719721075944,-500.0,0.00014766,3]
[330709188,1719721075967,-500.0,0.00014766,3]
[330709189,1719721075989,-500.0,0.00014766,3]
[330709190,1719721076011,-500.0,0.00014766,3]
[330709191,1719721076033,-1114.26,0.00014766,3]
[330709192,1719721076054,-1643.71,0.00014766,3]
[330709193,1719721076075,-161.5,0.00014766,3]
[330709194,1719721076096,-521.58,0.00014766,3]
[330709195,1719721076116,-500.0,0.00014766,3]
[330709196,1719721076139,-700.0,0.000148,5]
[330709197,1719721076159,-500.0,0.00014802,3]
[330709198,1719721076180,-500.0,0.00014802,3]
[330709199,1719721076201,-500.0,0.00014802,3]
[330709200,1719721076223,-500.0,0.00014802,3]
[330709201,1719721076246,-496.30599576,0.00014802,3]
[330709202,1719721076269,-500.0,0.00014802,3]
[330709203,1719721076290,-500.0,0.00014875,3]
[330709204,1719721076312,-500.0,0.00014876,3]
[330709205,1719721076336,-500.0,0.00014876,3]
[330709206,1719721076357,-500.0,0.00014876,3]
[330709207,1719721076380,-1114.26,0.00014876,3]
[330709208,1719721076401,-1643.71,0.00014876,3]
[330709209,1719721076423,-521.58,0.00014876,3]
[330709210,1719721076447,-500.0,0.00014876,3]
[330709211,1719721076474,-1000.0,0.000149,5]
[330709212,1719721076495,-500.0,0.00014912,3]
[330709213,1719721076515,-500.0,0.00014912,3]
[330709214,1719721076536,-277.36243784,0.00014912,3]
[330709215,1719721076558,-500.0,0.00014912,3]
[330709216,1719721076580,-500.0,0.00014912,3]
[330709217,1719721076600,-500.0,0.00014984,3]
[330709218,1719721076621,-500.0,0.00014986,3]
[330709219,1719721076641,-500.0,0.00014986,3]
[330709220,1719721076661,-318.922617,0.00014986,3]
[330709221,1719721076682,-1114.26,0.00014986,3]
[330709222,1719721076702,-1643.71,0.00014986,3]
[330709223,1719721076723,-521.58,0.00014986,3]
[330709224,1719721076742,-500.0,0.00014986,3]
[330709225,1719721076764,-2000.0,0.00015,5]
[330709226,1719721078516,500.0,0.00013999,3]
[330709227,1719721081326,500.0,0.00013999,3]
[330709228,1719721105042,500.0,0.00013999,3]
[330709229,1719721105257,213.73,0.00014109,3]
[330709230,1719721134249,500.0,0.00013999,3]
[330709231,1719721134539,500.0,0.00014109,3]
[330709232,1719721135147,500.0,0.00014218,3]
[330709233,1719721135426,500.0,0.00014328,3]
[330709234,1719721135708,500.0,0.00014438,3]
[330709235,1719721136312,500.0,0.00014547,3]
[330709236,1719721136937,533.81,0.00014657,3]
[330709237,1719721156764,500.0,0.00013999,3]
[330709238,1719721167526,500.0,0.00013999,3]
[330709239,1719721175953,500.0,0.00013999,3]
[330709240,1719721176605,500.0,0.00014109,3]
[330709241,1719721177273,500.0,0.00014218,3]
[330709242,1719721178985,500.0,0.00014328,3]
[330709243,1719721179522,500.0,0.00014438,3]
[330709244,1719721179942,566.02,0.00014547,3]
[330709245,1719721183191,292.73137895,0.00013999,3]
[330709246,1719721185325,521.84,0.00013999,3]
[330709247,1719721190253,500.0,0.00013999,3]
[330709248,1719721190966,500.0,0.00013999,3]
[330709249,1719721193261,500.0,0.00013999,3]
[330709250,1719721195353,500.0,0.00013999,3]
[330709251,1719721196654,508.33216048,0.00013999,3]
[330709252,1719721200977,500.0,0.00013999,3]
[330709253,1719721203140,500.0,0.00013999,3]
[330709254,1719721205373,500.0,0.00013999,3]
[330709255,1719721216130,500.0,0.00013999,3]
[330709256,1719721217078,500.0,0.00013999,3]
[330709257,1719721217368,500.0,0.00014109,3]
[330709258,1719721217660,500.0,0.00014218,3]
[330709259,1719721217921,500.0,0.00014328,3]
[330709260,1719721218058,361.66722291,0.00013999,3]
[330709261,1719721218313,500.0,0.00014438,3]
[330709262,1719721218641,500.0,0.00014547,3]
[330709263,1719721218669,500.0,0.00013999,3]
[330709264,1719721219103,500.0,0.00014657,3]
[330709265,1719721219246,500.0,0.00014766,3]
[330709266,1719721219536,500.0,0.00014876,3]
[330709267,1719721219600,500.0,0.00013999,3]
[330709268,1719721219817,500.0,0.00014986,3]
[330709269,1719721224032,277.95810623,0.00013999,3]
[330709270,1719721224534,500.0,0.00013999,3]
[330709271,1719721225700,500.0,0.00013999,3]
[330709272,1719721227639,161.51848348,0.00013999,3]
[330709273,1719721228161,500.0,0.00013999,3]
[330709274,1719721230787,500.0,0.00013999,3]
[330709275,1719721231728,500.0,0.00013999,3]
[330709276,1719721238324,500.0,0.00013999,3]
[330709277,1719721242961,392.70857195,0.00013999,3]
[330709278,1719721251774,500.0,0.00013999,3]
[330709279,1719721256591,-500.0,0.00015021,3]
[330709280,1719721256612,-500.0,0.00015021,3]
[330709281,1719721256636,-500.0,0.00015094,3]
[330709282,1719721256662,-1114.26,0.00015095,3]
[330709283,1719721256683,-1643.71,0.00015095,3]
[330709284,1719721256714,-500.0,0.00015095,3]
[330709285,1719721256739,-500.0,0.00015095,3]
[330709286,1719721258569,500.0,0.00013999,3]
[330709287,1719721264064,500.0,0.00013999,3]
[330709288,1719721264564,510.86586663,0.00013999,3]
[330709289,1719721269172,500.0,0.00013999,3]
[330709290,1719721275794,4003.27,0.00013925,3]
[330709291,1719721276695,4003.27,0.00014035,3]
[330709292,1719721277111,4003.27,0.00014144,3]
[330709293,1719721277701,500.0,0.00013999,3]
[330709294,1719721278253,4003.27,0.00014254,3]
[330709295,1719721279050,4003.27,0.00014364,3]
[330709296,1719721280743,4003.27,0.00014473,3]
[330709297,1719721280968,500.0,0.00013999,3]
[330709298,1719721281270,4003.27,0.00014583,3]
[330709299,1719721282072,4003.27,0.00014692,3]
[330709300,1719721283208,4003.27,0.00014802,3]
[330709301,1719721283643,4003.27,0.00014912,3]
[330709302,1719721284749,4003.27,0.00015021,3]
[330709303,1719721286880,-500.0,0.00015131,3]
[330709304,1719721286906,-500.0,0.00015131,3]
[330709305,1719721286927,-4003.27,0.00015131,3]
[330709306,1719721286948,-171.58906182,0.00015204,3]
[330709307,1719721286970,-1114.26,0.00015205,3]
[330709308,1719721286990,-1643.71,0.00015205,3]
[330709309,1719721287010,-500.0,0.00015205,3]
[330709310,1719721287032,-500.0,0.00015205,3]
[330709311,1719721287055,-500.0,0.0001524,3]
[330709312,1719721287076,-500.0,0.0001524,3]
[330709313,1719721287097,-4003.27,0.0001524,3]
[330709314,1719721287118,-1114.26,0.00015314,3]
[330709315,1719721287143,-1643.71,0.00015314,3]
[330709316,1719721287164,-500.0,0.00015314,3]
[330709317,1719721287185,-500.0,0.00015314,3]
[330709318,1719721287207,-500.0,0.0001535,3]
[330709319,1719721287230,-500.0,0.0001535,3]
[330709320,1719721287253,-4003.27,0.0001535,3]
[330709321,1719721287275,-1114.26,0.00015424,3]
[330709322,1719721287296,-1643.71,0.00015424,3]
[330709323,1719721287316,-500.0,0.00015424,3]
[330709324,1719721287338,-500.0,0.00015424,3]
[330709325,1719721287359,-500.0,0.00015459,3]
[330709326,1719721287382,-500.0,0.00015459,3]
[330709327,1719721288225,500.0,0.00013999,3]
[330709328,1719721288548,4003.27,0.00015459,3]
[330709329,1719721300325,500.0,0.00013999,3]
[330709330,1719721305949,500.0,0.00013999,3]
[330709331,1719721314893,500.0,0.00013999,3]
[330709332,1719721322583,1501.23,0.00013925,3]
[330709333,1719721323177,1501.23,0.00014035,3]
[330709334,1719721323487,1501.23,0.00014144,3]
[330709335,1719721324148,1501.23,0.00014254,3]
[330709336,1719721326137,1501.23,0.00014364,3]
[330709337,1719721326674,1501.23,0.00014473,3]
[330709338,1719721327537,1501.23,0.00014583,3]
[330709339,1719721328945,1501.23,0.00014692,3]
[330709340,1719721329752,1501.23,0.00014802,3]
[330709341,1719721330641,1501.23,0.00014912,3]
[330709342,1719721331287,1501.23,0.00015021,3]
[330709343,1719721332013,500.0,0.00013999,3]
[330709344,1719721333471,500.0,0.00014109,3]
[330709345,1719721333523,1501.23,0.00015131,3]
[330709346,1719721334829,1501.23,0.0001524,3]
[330709347,1719721334932,437.82,0.00014218,3]